fUSD/lending_fUSD_20240519
["ID","MTS","AMOUNT","RATE_DAILY","PERIOD"]
[327490662,1716124241172,-782.84,0.00026591,2]
[327490663,1716124241181,-786.2,0.00026591,2]
[327490664,1716124241191,-521.58,0.00026591,2]
[327490665,1716124241200,-500.0,0.00026591,2]
[327490666,1716124241210,-285.05217709,0.00026591,2]
[327490667,1716124241222,-214.94782291,0.00026591,2]
[327490668,1716124241231,-1196.1,0.00026591,2]
[327490669,1716124241240,-500.0,0.00026591,2]
[327490670,1716124241250,-738.65,0.00026591,2]
[327490671,1716124241260,-500.0,0.00026591,2]
[327490672,1716124241272,-783.66681653,0.00026591,2]
[327490673,1716124241284,-301.38318347,0.00026591,2]
[327490674,1716124241293,-573.02398937,0.00026591,2]
[327490675,1716124241312,-114.90601063,0.00026591,2]
[327490676,1716124241322,-964.55,0.00026591,2]
[327490677,1716124241331,-500.0,0.00026591,2]
[327490678,1716124241340,-500.0,0.00026591,2]
[327490679,1716124241350,-500.0,0.00026591,2]
[327490680,1716124241359,-500.0,0.00026591,2]
[327490681,1716124241369,-500.0,0.00026591,2]
[327490682,1716124241378,-2296.16,0.00026591,2]
[327490683,1716124241387,-500.0,0.00026591,2]
[327490684,1716124241396,-500.0,0.00026591,2]
[327490685,1716124241405,-874.88,0.00026591,2]
[327490686,1716124241415,-500.0,0.00026591,2]
[327490687,1716124241425,-788.03,0.00026591,2]
[327490688,1716124241433,-500.0,0.00026591,2]
[327490689,1716124241442,-500.0,0.00026591,2]
[327490690,1716124241451,-500.0,0.00026591,2]
[327490691,1716124241460,-8909.44,0.00026591,2]
[327490692,1716124241470,-500.0,0.00026591,2]
[327490693,1716124241479,-577.46,0.00026591,2]
[327490694,1716124241488,-500.0,0.00026591,2]
[327490695,1716124241497,-500.0,0.00026591,2]
[327490696,1716124241506,-500.0,0.00026592,2]
[327490697,1716124241516,-500.0,0.00026592,2]
[327490698,1716124241526,-500.0,0.00026592,2]
[327490699,1716124241535,-1320.32,0.00026592,2]
[327490700,1716124241544,-500.0,0.00026592,2]
[327490701,1716124241553,-500.0,0.00026592,2]
[327490702,1716124241563,-623.51,0.00026592,2]
[327490703,1716124241573,-809.72,0.00026592,2]
[327490704,1716124241582,-500.0,0.00026592,2]
[327490705,1716124241591,-500.0,0.00026592,2]
[327490706,1716124241601,-2268.72,0.00026592,2]
[327490707,1716124241610,-558.72,0.00026592,2]
[327490708,1716124241619,-500.0,0.00026592,2]
[327490709,1716124241628,-842.62,0.00026592,2]
[327490710,1716124241638,-500.0,0.00026592,2]
[327490711,1716124241648,-500.0,0.00026592,2]
[327490712,1716124241656,-500.0,0.00026592,2]
[327490713,1716124241666,-744.02,0.00026592,2]
[327490714,1716124241676,-673.22,0.00026592,2]
[327490715,1716124241685,-500.0,0.00026592,2]
[327490716,1716124241694,-500.0,0.00026592,2]
[327490717,1716124241704,-500.0,0.00026592,2]
[327490718,1716124241714,-649.11,0.00026592,2]
[327490719,1716124241724,-795.66,0.00026592,2]
[327490720,1716124241733,-1216.98,0.00026592,2]
[327490721,1716124241743,-500.0,0.00026592,2]
[327490722,1716124241753,-2153.26,0.00026592,2]
[327490723,1716124241762,-1169.4,0.00026592,2]
[327490724,1716124241777,-3703.88,0.00026592,2]
[327490725,1716124241787,-729.62,0.00026592,2]
[327490726,1716124241796,-1633.6,0.00026592,2]
[327490727,1716124241806,-1410.68,0.00026592,2]
[327490728,1716124241815,-500.0,0.00026592,2]
[327490729,1716124241824,-2731.81,0.00026592,2]
[327490730,1716124241834,-941.48,0.00026592,2]
[327490731,1716124241843,-15365.37,0.00026592,2]
[327490732,1716124241855,-3086.64,0.00026592,2]
[327490733,1716124241864,-500.0,0.00026592,2]
[327490734,1716124241874,-576.72992272,0.00026593,2]
[327490735,1716124241883,-500.0,0.00026593,2]
[327490736,1716124241893,-388.10239267,0.00026593,2]
[327490737,1716124241902,-500.0,0.00026593,2]
[327490738,1716124241913,-500.0,0.00026593,2]
[327490739,1716124241922,-500.0,0.00026593,2]
[327490740,1716124241932,-500.0,0.00026593,2]
[327490741,1716124241943,-500.0,0.00026593,2]
[327490742,1716124241952,-500.0,0.00026593,2]
[327490743,1716124241962,-500.0,0.00026593,2]
[327490744,1716124241972,-500.0,0.00026593,2]
[327490745,1716124241983,-549.64,0.00026593,2]
[327490746,1716124241994,-500.0,0.00026593,2]
[327490747,1716124242004,-550.85,0.00026593,2]
[327490748,1716124242013,-649.53,0.00026593,2]
[327490749,1716124242023,-500.0,0.00026593,2]
[327490750,1716124242032,-500.0,0.00026593,2]
[327490751,1716124242043,-500.0,0.00026593,2]
[327490752,1716124242052,-500.0,0.00026593,2]
[327490753,1716124242061,-500.0,0.00026593,2]
[327490754,1716124242070,-500.0,0.00026593,2]
[327490755,1716124242081,-426.57594662,0.00026593,2]
[327490756,1716124242091,-500.0,0.00026593,2]
[327490757,1716124242100,-500.0,0.00026593,2]
[327490758,1716124242111,-521.06547861,0.00026593,2]
[327490759,1716124242121,-500.0,0.00026593,2]
[327490760,1716124242131,-500.0,0.00026593,2]
[327490761,1716124242140,-500.0,0.00026593,2]
[327490762,1716124242149,-500.0,0.00026593,2]
[327490763,1716124242158,-500.0,0.00026593,2]
[327490764,1716124242168,-500.0,0.00026593,2]
[327490765,1716124242177,-525.3285505,0.00026593,2]
[327490766,1716124242187,-500.0,0.00026593,2]
[327490767,1716124242196,-500.0,0.00026593,2]
[327490768,1716124242206,-500.0,0.00026593,2]
[327490769,1716124242215,-250.97230589,0.00026593,2]
[327490770,1716124242224,-502.71600204,0.00026593,2]
[327490771,1716124242233,-509.23758268,0.00026593,2]
[327490772,1716124242244,-500.0,0.00026593,2]
[327490773,1716124242253,-610.34,0.00026593,2]
[327490774,1716124242263,-500.0,0.00026593,2]
[327490775,1716124242273,-500.0,0.00026593,2]
[327490776,1716124242282,-223.12462143,0.00026593,2]
[327490777,1716124242291,-207.1997487,0.00026593,2]
[327490778,1716124242300,-500.0,0.00026593,2]
[327490779,1716124242310,-524.17942396,0.00026593,2]
[327490780,1716124242319,-532.49038311,0.00026593,2]
[327490781,1716124242329,-500.0,0.00026593,2]
[327490782,1716124242338,-192.68396042,0.00026593,2]
[327490783,1716124242347,-529.40948942,0.00026593,2]
[327490784,1716124242368,-500.0,0.00026593,2]
[327490785,1716124242378,-372.31442762,0.00026593,2]
[327490786,1716124242394,-127.68557238,0.00026593,2]
[327490787,1716124242404,-197.03570771,0.00026593,2]
[327490788,1716124242413,-480.18426455,0.00026593,2]
[327490789,1716124242425,-19.81573545,0.00026593,2]
[327490790,1716124242435,-457.08029548,0.00026593,2]
[327490791,1716124242454,-42.91970452,0.00026593,2]
[327490792,1716124242464,-370.64940897,0.00026593,2]
[327490793,1716124242476,-129.35059103,0.00026593,2]
[327490794,1716124242485,-500.0,0.00026593,2]
[327490795,1716124242495,-218.63,0.00026593,2]
[327490796,1716124242504,-500.0,0.00026593,2]
[327490797,1716124242513,-500.0,0.00026593,2]
[327490798,1716124242524,-507.35471958,0.00026593,2]
[327490799,1716124242534,-513.09810631,0.00026593,2]
[327490800,1716124242559,-4.59623529,0.00026593,2]
[327490801,1716124242568,-500.0,0.00026593,2]
[327490802,1716124242577,-510.53042988,0.00026593,2]
[327490803,1716124242587,-500.0,0.00026593,2]
[327490804,1716124242597,-500.0,0.00026593,2]
[327490805,1716124242607,-500.0,0.00026593,2]
[327490806,1716124242617,-500.0,0.00026593,2]
[327490807,1716124242627,-500.0,0.00026593,2]
[327490808,1716124242636,-324.99758241,0.00026593,2]
[327490809,1716124242646,-500.0,0.00026593,2]
[327490810,1716124242656,-500.0,0.00026593,2]
[327490811,1716124242667,-500.0,0.00026593,2]
[327490812,1716124242678,-500.0,0.00026593,2]
[327490813,1716124242687,-500.0,0.00026593,2]
[327490814,1716124242697,-500.0,0.00026593,2]
[327490815,1716124242707,-500.0,0.00026593,2]
[327490816,1716124242717,-500.0,0.00026593,2]
[327490817,1716124242726,-500.0,0.00026593,2]
[327490818,1716124242736,-500.0,0.00026593,2]
[327490819,1716124242745,-500.0,0.00026593,2]
[327490820,1716124242755,-605.28273932,0.00026593,2]
[327490821,1716124242765,-500.0,0.00026593,2]
[327490822,1716124242781,-500.0,0.00026593,2]
[327490823,1716124242791,-500.0,0.00026593,2]
[327490824,1716124242800,-513.81382904,0.00026593,2]
[327490825,1716124242811,-623.95,0.00026593,2]
[327490826,1716124242820,-500.0,0.00026593,2]
[327490827,1716124242830,-500.0,0.00026593,2]
[327490828,1716124242840,-500.0,0.00026593,2]
[327490829,1716124242850,-508.01103584,0.00026593,2]
[327490830,1716124242862,-500.0,0.00026593,2]
[327490831,1716124242872,-500.0,0.00026593,2]
[327490832,1716124242882,-500.0,0.00026593,2]
[327490833,1716124242891,-558.04132113,0.00026593,2]
[327490835,1716124242900,-757.51,0.00026593,2]
[327490836,1716124242910,-500.0,0.00026593,7]
[327490837,1716124242920,-500.0,0.00026593,2]
[327490838,1716124242929,-500.0,0.00026593,2]
[327490841,1716124242939,-500.0,0.00026593,2]
[327490843,1716124242948,-648.01500581,0.00026593,2]
[327490844,1716124242958,-500.0,0.00026593,2]
[327490845,1716124242967,-500.0,0.00026593,2]
[327490847,1716124242977,-500.0,0.00026593,2]
[327490849,1716124242987,-500.0,0.00026593,2]
[327490851,1716124242996,-467.22,0.00026593,2]
[327490853,1716124243006,-500.0,0.00026593,2]
[327490855,1716124243015,-500.0,0.00026593,2]
[327490857,1716124243027,-500.0,0.00026593,2]
[327490859,1716124243037,-500.0,0.00026593,2]
[327490862,1716124243047,-500.0,0.00026593,2]
[327490864,1716124243056,-500.0,0.00026593,2]
[327490866,1716124243065,-500.0,0.00026593,2]
[327490868,1716124243075,-518.97328769,0.00026593,2]
[327490869,1716124243091,-500.0,0.00026593,2]
[327490870,1716124243100,-500.0,0.00026593,2]
[327490871,1716124243110,-512.51761095,0.00026593,2]
[327490872,1716124243119,-500.0,0.00026593,2]
[327490873,1716124243128,-500.0,0.00026593,2]
[327490875,1716124243138,-529.75068602,0.00026593,2]
[327490877,1716124243148,-497.43204214,0.00026593,2]
[327490879,1716124243157,-500.0,0.00026593,2]
[327490880,1716124243166,-314.00074925,0.00026593,2]
[327490881,1716124243175,-500.0,0.00026593,2]
[327490882,1716124243185,-500.0,0.00026593,2]
[327490883,1716124243193,-500.0,0.00026593,2]
[327490884,1716124243205,-465.75066575,0.00026593,2]
[327490885,1716124243215,-500.0,0.00026593,2]
[327490888,1716124243224,-500.0,0.00026593,2]
[327490891,1716124243239,-500.0,0.00026593,2]
[327490894,1716124243248,-528.52663239,0.00026593,2]
[327490897,1716124243257,-500.0,0.00026593,2]
[327490900,1716124243267,-379.5,0.00026593,2]
[327490903,1716124243278,-513.43694999,0.00026593,2]
[327490906,1716124243288,-500.0,0.00026593,2]
[327490908,1716124243297,-500.0,0.00026593,2]
[327490910,1716124243306,-150.0,0.00026593,2]
[327490911,1716124243316,-500.0,0.00026593,2]
[327490913,1716124243325,-500.0,0.00026593,2]
[327490914,1716124243334,-531.51047244,0.00026593,2]
[327490916,1716124243344,-500.0,0.00026593,2]
[327490917,1716124243354,-500.0,0.00026593,2]
[327490919,1716124243364,-500.0,0.00026593,2]
[327490921,1716124243373,-499.9431655,0.00026593,2]
[327490922,1716124243382,-500.0,0.00026593,2]
[327490924,1716124243392,-500.0,0.00026593,2]
[327490926,1716124243401,-500.0,0.00026593,2]
[327490927,1716124243410,-500.0,0.00026593,2]
[327490929,1716124243420,-521.00104193,0.00026593,2]
[327490930,1716124243430,-500.0,0.00026593,2]
[327490932,1716124243439,-517.9441158,0.00026593,2]
[327490934,1716124243449,-500.0,0.00026593,2]
[327490935,1716124243457,-500.0,0.00026593,2]
[327490937,1716124243467,-500.0,0.00026593,2]
[327490938,1716124243476,-500.0,0.00026593,2]
[327490939,1716124243486,-430.48,0.00026593,2]
[327490940,1716124243495,-429.07,0.00026593,2]
[327490941,1716124243504,-1031.92,0.00026593,2]
[327490942,1716124243513,-515.73910858,0.00026593,2]
[327490943,1716124243524,-516.9234155,0.00026593,2]
[327490944,1716124243533,-500.0,0.00026593,2]
[327490945,1716124243543,-500.0,0.00026593,2]
[327490946,1716124243552,-500.0,0.00026593,2]
[327490947,1716124243562,-531.34477443,0.00026593,2]
[327490948,1716124243571,-500.0,0.00026593,2]
[327490949,1716124243580,-500.0,0.00026593,2]
[327490950,1716124243589,-525.27235094,0.00026593,2]
[327490951,1716124243599,-500.0,0.00026593,2]
[327490952,1716124243609,-591.89,0.00026593,2]
[327490953,1716124243619,-500.0,0.00026593,2]
[327490954,1716124243628,-510.78853452,0.00026593,2]
[327490955,1716124243638,-156.65002411,0.00026593,2]
[327490956,1716124243647,-500.0,0.00026593,2]
[327490957,1716124243657,-500.0,0.00026593,2]
[327490958,1716124243667,-518.72597827,0.00026593,2]
[327490959,1716124243677,-500.0,0.00026593,2]
[327490960,1716124243686,-500.0,0.00026593,2]
[327490961,1716124243696,-500.0,0.00026593,2]
[327490962,1716124243706,-500.0,0.00026593,2]
[327490963,1716124243715,-638.05024735,0.00026593,2]
[327490964,1716124243724,-500.0,0.00026593,2]
[327490965,1716124243734,-522.50312506,0.00026593,2]
[327490966,1716124243743,-532.57084543,0.00026593,2]
[327490967,1716124243752,-500.0,0.00026593,2]
[327490968,1716124243762,-500.0,0.00026593,2]
[327490969,1716124243778,-530.45751831,0.00026593,2]
[327490970,1716124243788,-500.0,0.00026593,2]
[327490971,1716124243798,-500.0,0.00026593,2]
[327490972,1716124243808,-500.0,0.00026593,2]
[327490973,1716124243819,-500.0,0.00026593,2]
[327490974,1716124243829,-500.0,0.00026593,2]
[327490976,1716124243838,-500.0,0.00026593,2]
[327490977,1716124243848,-500.0,0.00026593,2]
[327490978,1716124243859,-500.0,0.00026593,2]
[327490979,1716124243870,-500.0,0.00026593,2]
[327490980,1716124243880,-500.0,0.00026593,2]
[327490981,1716124243889,-500.0,0.00026593,2]
[327490982,1716124243899,-500.0,0.00026593,2]
[327490983,1716124243909,-500.0,0.00026593,2]
[327490984,1716124243918,-500.0,0.00026593,2]
[327490985,1716124243928,-500.0,0.00026593,2]
[327490986,1716124243937,-524.89639706,0.00026593,2]
[327490987,1716124243947,-500.0,0.00026593,2]
[327490993,1716124244134,-500.0,0.00026593,2]
[327490995,1716124244144,-500.0,0.00026593,2]
[327490997,1716124244154,-178.2,0.00026593,2]
[327490998,1716124244164,-500.0,0.00026593,2]
[327490999,1716124244173,-500.0,0.00026593,2]
[327491000,1716124244183,-500.0,0.00026593,2]
[327491001,1716124244192,-500.0,0.00026593,2]
[327491002,1716124244202,-500.0,0.00026593,2]
[327491003,1716124244211,-500.0,0.00026593,2]
[327491004,1716124244221,-500.0,0.00026593,2]
[327491005,1716124244230,-500.0,0.00026593,2]
[327491006,1716124244240,-500.0,0.00026593,2]
[327491007,1716124244249,-588.6842907,0.00026593,2]
[327491008,1716124244258,-500.0,0.00026593,2]
[327491009,1716124244268,-500.0,0.00026593,2]
[327491010,1716124244279,-500.0,0.00026593,2]
[327491011,1716124244289,-500.0,0.00026593,2]
[327491012,1716124244298,-539.29933658,0.00026593,2]
[327491013,1716124244308,-500.0,0.00026593,2]
[327491014,1716124244318,-500.0,0.00026593,2]
[327491015,1716124244327,-500.0,0.00026593,2]
[327491016,1716124244336,-500.0,0.00026593,2]
[327491017,1716124244347,-500.0,0.00026593,2]
[327491018,1716124244356,-500.0,0.00026593,2]
[327491019,1716124244365,-500.0,0.00026593,2]
[327491020,1716124244374,-500.0,0.00026593,2]
[327491021,1716124244383,-151.249277,0.00026593,7]
[327491022,1716124244392,-521.00310144,0.00026593,2]
[327491023,1716124244402,-151.0,0.00026593,7]
[327491024,1716124244411,-500.0,0.00026593,2]
[327491025,1716124244421,-500.0,0.00026593,2]
[327491026,1716124244430,-587.88993037,0.00026593,2]
[327491027,1716124244440,-500.0,0.00026593,2]
[327491028,1716124244449,-500.0,0.00026593,2]
[327491029,1716124244459,-500.0,0.00026593,2]
[327491030,1716124244468,-151.0,0.00026593,7]
[327491031,1716124244477,-500.0,0.00026593,2]
[327491032,1716124244487,-500.0,0.00026593,2]
[327491033,1716124244496,-523.33947,0.00026593,2]
[327491034,1716124244506,-500.0,0.00026593,2]
[327491035,1716124244515,-524.45,0.00026593,2]
[327491036,1716124244525,-500.0,0.00026593,2]
[327491037,1716124244534,-500.0,0.00026593,2]
[327491038,1716124244544,-500.0,0.00026593,2]
[327491039,1716124244554,-642.24,0.00026593,2]
[327491040,1716124244563,-500.0,0.00026593,2]
[327491041,1716124244572,-500.0,0.00026593,2]
[327491042,1716124244582,-500.0,0.00026593,2]
[327491043,1716124244591,-500.0,0.00026593,2]
[327491044,1716124244601,-500.0,0.00026593,2]
[327491045,1716124244610,-500.0,0.00026593,2]
[327491046,1716124244620,-151.0,0.00026593,7]
[327491047,1716124244630,-500.0,0.00026593,2]
[327491048,1716124244639,-500.0,0.00026593,2]
[327491049,1716124244649,-151.0,0.00026593,7]
[327491050,1716124244658,-500.0,0.00026593,2]
[327491051,1716124244668,-500.0,0.00026593,2]
[327491052,1716124244677,-500.0,0.00026593,2]
[327491053,1716124244686,-151.0,0.00026593,7]
[327491054,1716124244695,-500.0,0.00026593,2]
[327491055,1716124244706,-231.99969911,0.00026593,2]
[327491056,1716124244715,-500.0,0.00026593,2]
[327491057,1716124244724,-500.0,0.00026593,2]
[327491058,1716124244733,-500.0,0.00026593,2]
[327491059,1716124244743,-500.0,0.00026593,2]
[327491060,1716124244753,-500.0,0.00026593,2]
[327491061,1716124244764,-500.0,0.00026593,2]
[327491062,1716124244775,-500.0,0.00026593,2]
[327491063,1716124244789,-500.0,0.00026593,2]
[327491064,1716124244799,-504.91800256,0.00026593,2]
[327491065,1716124244808,-500.0,0.00026593,2]
[327491066,1716124244818,-500.0,0.00026593,2]
[327491067,1716124244828,-500.0,0.00026593,2]
[327491068,1716124244837,-500.0,0.00026593,2]
[327491069,1716124244847,-500.0,0.00026593,2]
[327491070,1716124244860,-500.0,0.00026593,2]
[327491071,1716124244871,-500.0,0.00026593,2]
[327491072,1716124244881,-500.0,0.00026593,2]
[327491073,1716124244891,-151.0,0.00026593,7]
[327491074,1716124244901,-521.25787002,0.00026593,2]
[327491075,1716124244910,-500.0,0.00026593,2]
[327491076,1716124244920,-500.0,0.00026593,2]
[327491077,1716124244929,-883.74,0.00026593,2]
[327491078,1716124244939,-500.0,0.00026593,2]
[327491079,1716124244949,-500.0,0.00026593,2]
[327491080,1716124244959,-500.0,0.00026593,2]
[327491081,1716124244969,-506.46154333,0.00026593,2]
[327491082,1716124244979,-500.0,0.00026593,2]
[327491083,1716124244988,-500.0,0.00026593,2]
[327491084,1716124244998,-500.0,0.00026593,2]
[327491085,1716124245007,-500.0,0.00026593,2]
[327491086,1716124245016,-500.0,0.00026593,2]
[327491087,1716124245027,-812.61,0.00026593,2]
[327491088,1716124245037,-500.0,0.00026593,2]
[327491089,1716124245048,-500.0,0.00026593,2]
[327491090,1716124245058,-500.0,0.00026593,2]
[327491091,1716124245067,-1708.91,0.00026593,2]
[327491092,1716124245077,-151.0,0.00026593,7]
[327491093,1716124245086,-506.6533178,0.00026593,2]
[327491094,1716124245096,-500.0,0.00026593,2]
[327491095,1716124245106,-509.7820126,0.00026593,2]
[327491096,1716124245115,-500.0,0.00026593,2]
[327491097,1716124245125,-500.0,0.00026593,2]
[327491098,1716124245134,-500.0,0.00026593,2]
[327491099,1716124245145,-503.35715806,0.00026593,2]
[327491100,1716124245154,-503.29552828,0.00026593,2]
[327491101,1716124245164,-500.0,0.00026593,2]
[327491102,1716124245174,-1963.24,0.00026593,2]
[327491103,1716124245183,-519.71551398,0.00026593,2]
[327491104,1716124245193,-513.7797109,0.00026593,2]
[327491105,1716124245203,-500.0,0.00026593,2]
[327491106,1716124245212,-151.0,0.00026593,7]
[327491107,1716124245222,-500.0,0.00026593,2]
[327491108,1716124245231,-505.83492892,0.00026593,2]
[327491109,1716124245241,-501.03402004,0.00026593,2]
[327491110,1716124245250,-500.0,0.00026593,2]
[327491111,1716124245260,-507.07739224,0.00026593,2]
[327491112,1716124245269,-500.0,0.00026593,2]
[327491113,1716124245280,-530.42535643,0.00026593,2]
[327491114,1716124245290,-500.0,0.00026593,2]
[327491115,1716124245299,-500.0,0.00026593,2]
[327491116,1716124245308,-500.0,0.00026593,2]
[327491117,1716124245318,-505.94102497,0.00026593,2]
[327491118,1716124245327,-1421.99,0.00026593,2]
[327491119,1716124245337,-500.0,0.00026593,2]
[327491120,1716124245346,-500.0,0.00026593,2]
[327491121,1716124245355,-500.0,0.00026593,2]
[327491122,1716124245365,-500.0,0.00026593,2]
[327491123,1716124245375,-513.28204656,0.00026593,2]
[327491124,1716124245384,-516.17138536,0.00026593,2]
[327491125,1716124245393,-500.0,0.00026593,2]
[327491126,1716124245402,-500.0,0.00026593,2]
[327491127,1716124245412,-500.0,0.00026593,2]
[327491128,1716124245421,-500.0,0.00026593,2]
[327491129,1716124245431,-500.0,0.00026593,2]
[327491130,1716124245440,-500.0,0.00026593,2]
[327491131,1716124245449,-500.0,0.00026593,2]
[327491132,1716124245458,-500.0,0.00026593,2]
[327491133,1716124245468,-819.99,0.00026593,2]
[327491134,1716124245477,-506.90384753,0.00026593,2]
[327491135,1716124245487,-500.0,0.00026593,2]
[327491136,1716124245496,-1163.93,0.00026593,2]
[327491137,1716124245505,-500.0,0.00026593,2]
[327491138,1716124245514,-500.0,0.00026593,2]
[327491139,1716124245524,-545.51166709,0.00026593,2]
[327491140,1716124245533,-500.0,0.00026593,2]
[327491141,1716124245541,-500.0,0.00026593,2]
[327491142,1716124245550,-500.0,0.00026593,2]
[327491143,1716124245559,-514.31730391,0.00026593,2]
[327491144,1716124245568,-767.42,0.00026593,2]
[327491145,1716124245577,-500.0,0.00026593,2]
[327491146,1716124245586,-175.446316,0.00026593,7]
[327491147,1716124245596,-501.44482985,0.00026593,2]
[327491148,1716124245605,-500.0,0.00026593,2]
[327491149,1716124245614,-151.0,0.00026593,7]
[327491150,1716124245624,-506.24159536,0.00026593,2]
[327491151,1716124245633,-552.81584476,0.00026593,2]
[327491152,1716124245642,-500.0,0.00026593,2]
[327491153,1716124245652,-500.0,0.00026593,2]
[327491154,1716124245662,-507.05478599,0.00026593,2]
[327491155,1716124245671,-500.0,0.00026593,2]
[327491156,1716124245681,-500.0,0.00026593,2]
[327491157,1716124245690,-151.0,0.00026593,7]
[327491158,1716124245699,-500.0,0.00026593,2]
[327491159,1716124245709,-500.0,0.00026593,2]
[327491160,1716124245719,-500.0,0.00026593,2]
[327491161,1716124245728,-506.29739305,0.00026593,2]
[327491162,1716124245737,-500.0,0.00026593,2]
[327491163,1716124245747,-992.18,0.00026593,2]
[327491164,1716124245756,-500.0,0.00026593,2]
[327491165,1716124245765,-500.0,0.00026593,2]
[327491166,1716124245780,-500.0,0.00026593,2]
[327491167,1716124245790,-500.0,0.00026593,2]
[327491168,1716124245799,-286.53842713,0.00026593,2]
[327491169,1716124245809,-500.0,0.00026593,2]
[327491170,1716124245818,-68.63934341,0.00026593,2]
[327491171,1716124245841,-431.36065659,0.00026593,2]
[327491172,1716124245852,-500.0,0.00026593,2]
[327491173,1716124245862,-509.4237114,0.00026593,2]
[327491174,1716124245871,-500.0,0.00026593,2]
[327491175,1716124245880,-500.0,0.00026593,2]
[327491176,1716124245890,-315.91460781,0.00026593,2]
[327491177,1716124245901,-184.08539219,0.00026593,2]
[327491178,1716124245911,-151.0,0.00026593,7]
[327491179,1716124245921,-500.0,0.00026593,2]
[327491180,1716124245930,-500.0,0.00026593,2]
[327491182,1716124245940,-500.0,0.00026593,2]
[327491183,1716124245949,-500.0,0.00026593,2]
[327491185,1716124245959,-842.79,0.00026593,2]
[327491186,1716124245968,-1160.7,0.00026593,2]
[327491187,1716124245977,-500.0,0.00026593,2]
[327491188,1716124245987,-500.0,0.00026593,2]
[327491189,1716124245996,-500.0,0.00026593,2]
[327491190,1716124246005,-500.0,0.00026593,2]
[327491191,1716124246014,-500.0,0.00026593,2]
[327491192,1716124246024,-500.0,0.00026593,2]
[327491193,1716124246033,-516.68346631,0.00026593,2]
[327491194,1716124246042,-500.0,0.00026593,2]
[327491195,1716124246051,-564.21,0.00026593,2]
[327491196,1716124246060,-500.0,0.00026593,2]
[327491197,1716124246069,-500.0,0.00026593,2]
[327491199,1716124246078,-500.0,0.00026593,2]
[327491201,1716124246087,-3679.32,0.00026593,2]
[327491202,1716124246097,-254.30894129,0.00026593,2]
[327491203,1716124246106,-500.0,0.00026593,2]
[327491204,1716124246115,-500.0,0.00026593,2]
[327491205,1716124246124,-500.0,0.00026593,2]
[327491206,1716124246133,-500.0,0.00026593,2]
[327491207,1716124246142,-500.0,0.00026593,2]
[327491208,1716124246152,-1014.76,0.00026593,2]
[327491209,1716124246161,-500.0,0.00026593,2]
[327491210,1716124246170,-544.78540979,0.00026593,2]
[327491211,1716124246182,-350.28459021,0.00026593,2]
[327491212,1716124246192,-155.051742,0.00026593,7]
[327491213,1716124246201,-500.0,0.00026593,2]
[327491214,1716124246211,-500.0,0.00026593,2]
[327491215,1716124246220,-249.08618181,0.00026593,2]
[327491216,1716124246232,-250.91381819,0.00026593,2]
[327491217,1716124246242,-500.0,0.00026593,2]
[327491218,1716124246251,-500.0,0.00026593,2]